fUSD/lending_fUSD_20260316
["ID","MTS","AMOUNT","RATE_DAILY","PERIOD"]
[408455222,1773666631859,-500.0,0.00017773,2]
[408455223,1773666631869,-500.0,0.00017773,2]
[408455224,1773666631878,-226.79177837,0.000178,2]
[408455225,1773666631889,-500.0,0.000178,2]
[408455226,1773666631900,-166.66,0.00017904,2]
[408455227,1773666631910,-500.0,0.0001795,2]
[408455228,1773666631919,-500.0,0.0001795,2]
[408455229,1773666631929,-500.0,0.0001795,2]
[408455230,1773666631939,-1490.2450557,0.00017953,2]
[408455231,1773666631948,-500.0,0.000181,2]
[408455232,1773666631957,-2564.42829226,0.00018139,2]
[408455233,1773666631970,-166.66,0.00018258,2]
[408455234,1773666631979,-284.1412,0.00018264,2]
[408455235,1773666631992,-1490.2450557,0.00018277,2]
[408455236,1773666632002,-198.14141269,0.00018321,2]
[408455237,1773666632012,-500.0,0.00018321,2]
[408455238,1773666632021,-156.56,0.00018332,2]
[408455239,1773666632031,-502.24595461,0.00018348,2]
[408455240,1773666632040,-343.0,0.00018468,2]
[408455242,1773666632050,-343.0,0.00018485,2]
[408455244,1773666632059,-18630.59,0.00018493,2]
[408455246,1773666632069,-1000.0,0.00018498,2]
[408455249,1773666632078,-1000.0,0.00018498,2]
[408455251,1773666632088,-1000.0,0.00018498,2]
[408455253,1773666632097,-343.0,0.0001851,2]
[408455255,1773666632106,-939.71,0.00018515,2]
[408455257,1773666632115,-1490.2450557,0.00018602,2]
[408455258,1773666632124,-166.66,0.00018613,2]
[408455259,1773666632134,-343.0,0.00018633,2]
[408455260,1773666632143,-500.0,0.00018648,2]
[408455261,1773666632152,-343.0,0.0001868,2]
[408455262,1773666632161,-461.799379,0.00018718,7]
[408455263,1773666632170,-338.057339,0.00018718,7]
[408455264,1773666632183,-455.356015,0.00018718,7]
[408455265,1773666632193,-343.0,0.00018733,2]
[408455266,1773666632202,-250.0,0.00018748,2]
[408455267,1773666632211,-5982.60628328,0.00018815,2]
[408455268,1773666632221,-1940.48292033,0.00018824,2]
[408455269,1773666632230,-32961.6878,0.00018825,2]
[408455270,1773666632240,-5000.0,0.00018825,2]
[408455271,1773666632249,-157.52459696,0.00018832,2]
[408455272,1773666632259,-5982.60628322,0.00018836,2]
[408455273,1773666632269,-250.0,0.0001884,2]
[408455274,1773666632278,-1940.48292031,0.00018844,2]
[408455275,1773666632287,-500.0,0.00018847,2]
[408455276,1773666632297,-500.0,0.00018847,2]
[408455277,1773666632307,-500.0,0.00018847,2]
[408455278,1773666632317,-500.0,0.00018847,2]
[408455279,1773666632327,-500.0,0.00018847,2]
[408455280,1773666632337,-500.0,0.00018847,2]
[408455281,1773666632347,-500.0,0.00018847,2]
[408455282,1773666632356,-500.0,0.00018847,2]
[408455283,1773666632365,-500.0,0.00018847,2]
[408455284,1773666632378,-500.0,0.00018847,2]
[408455285,1773666632387,-500.0,0.00018847,2]
[408455286,1773666632397,-500.0,0.00018847,2]
[408455287,1773666632406,-250.0,0.00018847,2]
[408455288,1773666632415,-285.33216291,0.00018847,2]
[408455289,1773666632425,-973.00037029,0.00018863,2]
[408455290,1773666632435,-1940.48292031,0.00018863,2]
[408455291,1773666632445,-333.35539955,0.00018877,2]
[408455292,1773666632454,-1940.48292031,0.00018883,2]
[408455293,1773666632463,-5774.96887006,0.000189,2]
[408455294,1773666632472,-250.0,0.000189,2]
[408455295,1773666632482,-618.8,0.000189,2]
[408455296,1773666632491,-618.8,0.000189,2]
[408455297,1773666632500,-1940.48292031,0.00018902,2]
[408455298,1773666632509,-500.0,0.00018909,2]
[408455299,1773666632519,-500.0,0.00018909,2]
[408455300,1773666632528,-500.0,0.00018909,2]
[408455301,1773666632538,-500.0,0.00018909,2]
[408455302,1773666632547,-500.0,0.00018909,2]
[408455303,1773666632557,-500.0,0.00018909,2]
[408455304,1773666632566,-500.0,0.00018909,2]
[408455305,1773666632579,-500.0,0.00018909,2]
[408455306,1773666632590,-500.0,0.00018909,2]
[408455307,1773666632599,-500.0,0.00018909,2]
[408455308,1773666632609,-500.0,0.00018909,2]
[408455309,1773666632618,-500.0,0.00018909,2]
[408455310,1773666632628,-500.0,0.00018909,2]
[408455311,1773666632638,-290.52798394,0.00018909,2]
[408455312,1773666632648,-500.0,0.00018909,2]
[408455313,1773666632657,-500.0,0.00018909,2]
[408455314,1773666632666,-500.0,0.00018909,2]
[408455315,1773666632676,-500.0,0.00018909,2]
[408455316,1773666632685,-500.0,0.00018909,2]
[408455317,1773666632696,-500.0,0.00018909,2]
[408455318,1773666632706,-500.0,0.00018909,2]
[408455319,1773666632716,-500.0,0.00018909,2]
[408455320,1773666632726,-500.0,0.00018909,2]
[408455321,1773666632735,-500.0,0.00018909,2]
[408455322,1773666632745,-500.0,0.00018909,2]
[408455323,1773666632754,-500.0,0.00018909,2]
[408455324,1773666632763,-500.0,0.00018909,2]
[408455325,1773666632775,-500.0,0.00018909,2]
[408455326,1773666632784,-500.0,0.00018909,2]
[408455327,1773666632794,-500.0,0.00018909,2]
[408455328,1773666632803,-500.0,0.00018909,2]
[408455329,1773666632812,-500.0,0.00018909,2]
[408455330,1773666632822,-500.0,0.00018909,2]
[408455331,1773666632831,-500.0,0.00018909,2]
[408455332,1773666632841,-500.0,0.00018909,2]
[408455333,1773666632850,-500.0,0.00018909,2]
[408455334,1773666632859,-500.0,0.00018909,2]
[408455335,1773666632869,-500.0,0.00018909,2]
[408455336,1773666632878,-500.0,0.00018909,2]
[408455337,1773666632889,-500.0,0.00018909,2]
[408455338,1773666632899,-500.0,0.00018909,2]
[408455339,1773666632908,-500.0,0.00018909,2]
[408455340,1773666632917,-500.0,0.00018909,2]
[408455341,1773666632927,-500.0,0.00018909,2]
[408455342,1773666632938,-500.0,0.00018909,2]
[408455343,1773666632948,-500.0,0.00018909,2]
[408455344,1773666632957,-500.0,0.00018909,2]
[408455345,1773666632969,-500.0,0.00018909,2]
[408455346,1773666632979,-500.0,0.00018909,2]
[408455347,1773666632989,-500.0,0.00018909,2]
[408455348,1773666632999,-500.0,0.00018909,2]
[408455349,1773666633009,-500.0,0.00018909,2]
[408455350,1773666633018,-500.0,0.00018909,2]
[408455351,1773666633028,-500.0,0.00018909,2]
[408455352,1773666633037,-500.0,0.00018909,2]
[408455353,1773666633046,-500.0,0.00018909,2]
[408455354,1773666633055,-500.0,0.00018909,2]
[408455355,1773666633065,-500.0,0.00018909,2]
[408455356,1773666633074,-500.0,0.00018909,2]
[408455357,1773666633083,-500.0,0.00018909,2]
[408455358,1773666633093,-500.0,0.00018909,2]
[408455359,1773666633102,-500.0,0.00018909,2]
[408455360,1773666633111,-500.0,0.00018909,2]
[408455361,1773666633121,-500.0,0.00018909,2]
[408455362,1773666633130,-500.0,0.00018909,2]
[408455363,1773666633139,-504.11938946,0.00018909,2]
[408455364,1773666633148,-500.0,0.00018909,2]
[408455365,1773666633158,-500.0,0.00018909,2]
[408455366,1773666633176,-315.62096103,0.00018909,2]
[408455367,1773666633186,-156.56551624,0.00018909,2]
[408455368,1773666633195,-220182.64465756,0.0001891,2]
[408455369,1773666633205,-618.8,0.00018915,2]
[408455370,1773666633214,-618.8,0.00018915,2]
[408455371,1773666633417,-618.8,0.00018915,2]
[408455372,1773666633427,-1940.48292031,0.00018922,2]
[408455373,1773666633436,-233.34877968,0.00018924,2]
[408455374,1773666633445,-500.0,0.00018924,2]
[408455375,1773666633455,-576.34365719,0.00018924,2]
[408455376,1773666633465,-500.0,0.00018924,2]
[408455377,1773666633474,-500.0,0.00018924,2]
[408455378,1773666633486,-80827.71016971,0.00018925,2]
[408455379,1773666633500,-30132.19703418,0.00018925,2]
[408455380,1773666633513,-1761.49480591,0.00018925,2]
[408455381,1773666633527,-735.90085166,0.00018925,2]
[408455382,1773666633543,-3455.00000014,0.00018925,2]
[408455384,1773666637833,-974.33676083,0.00018856,2]
[408455385,1773666637845,-654.1361093,0.00018856,2]
[408455386,1773666637856,-1420.1535843,0.00018856,2]
[408455394,1773666638540,-2933.97982879,0.00018856,2]
[408455395,1773666638551,-519734.7939384,0.00018925,2]
[408455396,1773666638561,-1076.32,0.00018925,2]
[408455397,1773666638570,-250.0,0.00018925,2]
[408455398,1773666638579,-1490.2450557,0.00018926,2]
[408455399,1773666638588,-343.0,0.00018932,2]
[408455400,1773666638597,-1940.48292031,0.00018941,2]
[408455401,1773666638606,-343.0,0.00018958,2]
[408455402,1773666638615,-1940.48292031,0.00018961,2]
[408455403,1773666638624,-506.49172954,0.00018973,2]
[408455404,1773666638633,-336.85380746,0.00018973,2]
[408455405,1773666638642,-501.93995683,0.00018973,2]
[408455406,1773666638651,-526.19704835,0.00018973,2]
[408455407,1773666638660,-500.0,0.00018973,2]
[408455408,1773666638669,-500.0,0.00018973,2]
[408455409,1773666638678,-501.04208382,0.00018973,2]
[408455410,1773666638687,-501.34415765,0.00018973,2]
[408455411,1773666638696,-500.0,0.00018973,2]
[408455412,1773666638709,-500.0,0.00018973,2]
[408455413,1773666638718,-500.0,0.00018973,2]
[408455414,1773666638728,-1940.48292031,0.0001898,2]
[408455415,1773666638737,-250.0,0.00018989,2]
[408455416,1773666638746,-1000.0,0.00019,2]
[408455417,1773666638755,-4741.00799026,0.00019,2]
[408455418,1773666638764,-330.66347375,0.00019,2]
[408455419,1773666638774,-1940.48292031,0.00019,2]
[408455420,1773666638783,-4568.70461844,0.00019,2]
[408455421,1773666638793,-343.0,0.00019013,2]
[408455422,1773666638802,-343.0,0.00019016,2]
[408455423,1773666638811,-250.0,0.00019025,2]
[408455424,1773666638820,-504.05420061,0.00019046,2]
[408455425,1773666638830,-282.33990359,0.00019046,2]
[408455426,1773666638839,-502.24459524,0.00019073,2]
[408455427,1773666638848,-332.04439719,0.00019073,2]
[408455428,1773666638857,-500.91833216,0.00019073,2]
[408455429,1773666638866,-500.0,0.00019073,2]
[408455430,1773666638875,-500.0,0.00019073,2]
[408455431,1773666638885,-500.48646595,0.00019073,2]
[408455432,1773666638898,-501.14795082,0.00019073,2]
[408455433,1773666638907,-504.49282285,0.00019073,2]
[408455434,1773666638917,-501.08688956,0.00019073,2]
[408455435,1773666638926,-500.0,0.00019073,2]
[408455436,1773666638937,-504.23644602,0.00019073,2]
[408455437,1773666638946,-500.0,0.00019073,2]
[408455438,1773666638955,-501.02691611,0.00019073,2]
[408455439,1773666638964,-500.0,0.00019073,2]
[408455440,1773666638974,-411.93023927,0.00019073,2]
[408455441,1773666638983,-500.0,0.00019073,2]
[408455442,1773666638992,-500.0,0.00019073,2]
[408455443,1773666639001,-500.0,0.00019073,2]
[408455444,1773666639010,-500.0,0.00019073,2]
[408455445,1773666639019,-500.0,0.00019073,2]
[408455446,1773666639028,-250.0,0.00019073,2]
[408455447,1773666639037,-343.0,0.0001908,2]
[408455448,1773666639047,-500.0,0.00019088,2]
[408455449,1773666639057,-536.49250669,0.0001909,2]
[408455450,1773666639066,-536.49250669,0.0001909,2]
[408455451,1773666639075,-536.49250669,0.0001909,2]
[408455452,1773666639084,-151.0,0.00019097,2]
[408455453,1773666639094,-151.0,0.00019097,2]
[408455454,1773666639103,-151.0,0.00019097,2]
[408455455,1773666639112,-547.30499022,0.00019099,2]
[408455456,1773666639123,-500.0,0.00019099,2]
[408455457,1773666639132,-500.0,0.00019099,2]
[408455458,1773666639141,-505.73766037,0.00019099,2]
[408455459,1773666639152,-500.0,0.00019099,2]
[408455460,1773666639162,-500.0,0.00019099,2]
[408455461,1773666639171,-500.0,0.00019099,2]
[408455462,1773666639181,-500.0,0.00019099,2]
[408455463,1773666639190,-155.0,0.00019099,2]
[408455464,1773666639199,-157.52459696,0.00019099,2]
[408455465,1773666639209,-300.0,0.00019099,2]
[408455466,1773666639218,-309.75605228,0.00019099,2]
[408455467,1773666639229,-1214.0,0.000191,2]
[408455468,1773666639238,-85943.43570478,0.000191,2]
[408455469,1773666639409,-451.15504761,0.000191,2]
[408455470,1773666639465,-27416.65822461,0.000191,2]
[408455471,1773666639477,-5018.84606289,0.000191,2]
[408455473,1773666640054,-2271143.04245189,0.000191,2]
[408455474,1773666640063,-136021.08678717,0.000191,2]
[408455475,1773666640072,-200.0,0.000191,2]
[408455476,1773666640082,-2280.8145859,0.000191,2]
[408455477,1773666640091,-2000.0,0.000191,2]
[408455478,1773666640100,-200.0,0.000191,2]
[408455479,1773666640109,-2644287.11192948,0.000191,2]
[408455480,1773666640120,-4926.0,0.000191,2]
[408455485,1773666645006,-5982.60628322,0.00018877,2]
[408455486,1773666645016,-75022.75059636,0.000191,2]
[408455487,1773666645026,-31262.35638734,0.000191,2]
[408455488,1773666645170,-381838.00394986,0.000191,2]
[408455489,1773666645180,-151.0,0.000191,2]
[408455490,1773666645188,-151.0,0.000191,2]
[408455491,1773666645198,-151.0,0.000191,2]
[408455492,1773666645207,-151.0,0.000191,2]
[408455493,1773666645217,-200.0,0.000191,2]
[408455494,1773666645226,-366.86796185,0.000191,2]
[408455495,1773666645235,-151.0,0.000191,2]
[408455496,1773666645248,-729.191371,0.000191,2]
[408455497,1773666645257,-729.191371,0.000191,2]
[408455498,1773666645266,-729.191371,0.000191,2]
[408455499,1773666645275,-729.191371,0.000191,2]
[408455500,1773666645284,-729.191371,0.000191,2]
[408455501,1773666645293,-729.191371,0.000191,2]
[408455502,1773666645302,-729.191371,0.000191,2]
[408455503,1773666645312,-250.0,0.000191,2]
[408455504,1773666645321,-729.191371,0.000191,2]
[408455505,1773666645330,-71414.11039417,0.000191,2]
[408455510,1773666645984,-22156.15146499,0.000191,2]
[408455511,1773666645996,-22739.24046585,0.000191,2]
[408455512,1773666646109,-12284.75848655,0.000191,2]
[408455577,1773667539152,-1366.87891142,0.0001515,2]
[408455583,1773667651084,-191.97108858,0.0001515,2]
[408455584,1773667651107,-623.4,0.00015941,2]
[408455585,1773667651128,-250.0,0.00016665,2]
[408455586,1773667651149,-525.80324129,0.00017,2]
[408455654,1773667831911,-568.0612,0.00017,2]
[408455655,1773667831922,-629.28314869,0.000179,2]
[408455656,1773667831931,-623.4,0.00017934,2]
[408455657,1773667831940,-111.74565131,0.00017981,2]
[408455658,1773667832080,-1388.25434869,0.00017981,2]
[408455659,1773667832090,-166.49782903,0.00018003,2]
[408455660,1773667832099,-629.28314867,0.00018103,2]
[408455661,1773667832108,-150.0,0.00018169,2]
[408455662,1773667832118,-238.24,0.00018171,2]
[408455663,1773667832127,-629.28314867,0.00018324,2]
[408455664,1773667832136,-629.28314867,0.00018546,2]
[408455665,1773667832147,-1200.0,0.00018593,2]
[408455666,1773667832156,-253.0,0.00018594,2]
[408455667,1773667832166,-1129.94,0.00018594,2]
[408455668,1773667832174,-299.99,0.00018594,4]
[408455669,1773667832184,-253.0,0.00018595,2]
[408455670,1773667832193,-3590.18,0.00018595,2]
[408455672,1773667832202,-168.1,0.00018646,2]
[408455673,1773667832211,-629.28314869,0.00018699,2]
[408455674,1773667832221,-253.0,0.0001872,2]
[408455675,1773667832233,-629.28314867,0.00018733,2]
[408455676,1773667832242,-4999.99,0.00018733,2]
[408455677,1773667832251,-9999.99,0.00018733,2]
[408455678,1773667832262,-150.99,0.00018733,2]
[408455679,1773667832271,-629.28314867,0.00018766,2]
[408455680,1773667832280,-4636.76,0.00018766,2]
[408455681,1773667832290,-629.28314869,0.00018797,2]
[408455682,1773667832299,-629.28314867,0.00018798,2]
[408455683,1773667832308,-629.28314867,0.00018799,2]
[408455684,1773667832318,-629.28314867,0.000188,2]
[408455685,1773667832327,-629.28314867,0.000188,2]
[408455686,1773667832337,-166.17876498,0.000188,2]
[408455687,1773667832347,-166.17876497,0.0001884,2]
[408455688,1773667832355,-186.26012149,0.00018873,2]
[408455689,1773667832364,-285.3465003,0.00018873,2]
[408455690,1773667832373,-448.24083087,0.00018873,2]
[408455691,1773667832382,-500.0,0.00018873,2]
[408455692,1773667832391,-191.85246219,0.00018873,2]
[408455693,1773667832400,-500.0,0.00018873,2]
[408455694,1773667832409,-166.17876497,0.0001888,2]
[408455695,1773667832418,-167.49845187,0.00018889,2]
[408455696,1773667832427,-500.0,0.00018889,2]
[408455697,1773667832436,-500.0,0.00018889,2]
[408455698,1773667832445,-500.0,0.00018889,2]
[408455699,1773667832454,-500.0,0.00018889,2]
[408455700,1773667832463,-500.0,0.00018889,2]
[408455701,1773667832472,-500.0,0.00018889,2]
[408455702,1773667832482,-500.0,0.00018889,2]
[408455703,1773667832492,-500.0,0.00018889,2]
[408455704,1773667832501,-500.0,0.00018889,2]
[408455705,1773667832510,-200.0,0.00018889,2]
[408455706,1773667832520,-500.0,0.00018889,2]
[408455707,1773667832529,-500.0,0.00018889,2]
[408455708,1773667832539,-500.0,0.00018889,2]
[408455709,1773667832548,-4142.2444,0.000189,2]
[408455710,1773667832557,-95052.0847,0.000189,2]
[408455711,1773667832567,-6079.9912,0.000189,2]
[408455712,1773667832576,-220.44231584,0.000189,2]
[408455713,1773667832585,-157.52459696,0.000189,2]
[408455714,1773667832595,-5000.0,0.000189,2]
[408455715,1773667832605,-912.4829,0.000189,2]
[408455716,1773667832614,-9734.76157636,0.000189,2]
[408455719,1773667837972,-616.71685214,0.000188,2]
[408455720,1773667837982,-627.66014786,0.000189,2]
[408455721,1773667838088,-12309.54627845,0.000189,2]
[408455722,1773667838099,-322.57915066,0.000189,2]
[408455723,1773667838111,-1176.555,0.000189,2]
[408455724,1773667838148,-7028.29999999,0.000189,2]
[408455725,1773667838209,-593.41340116,0.000189,2]
[408455726,1773667838221,-3321.80580495,0.000189,2]
[408455735,1773667840436,-49231.33888864,0.000189,2]
[408455736,1773667840658,-774.6985844,0.000189,2]
[408455737,1773667840670,-1630444.18772294,0.000189,2]
[408455738,1773667840679,-674.3368,0.000189,2]
[408455739,1773667840689,-3623.51056024,0.000189,2]
[408455740,1773667840698,-159.65926722,0.000189,2]
[408455741,1773667840707,-168.71417431,0.000189,2]
[408455742,1773667840716,-166.17876497,0.0001892,2]
[408455743,1773667840726,-397.38450504,0.00018941,2]
[408455744,1773667840736,-500.0,0.00018941,2]
[408455745,1773667840746,-500.0,0.00018941,2]
[408455746,1773667840756,-500.0,0.00018941,2]
[408455747,1773667840766,-500.0,0.00018941,2]
[408455748,1773667840775,-220.44231582,0.0001895,2]
[408455749,1773667840784,-166.17876497,0.0001896,2]
[408455750,1773667840794,-500.0,0.00018973,2]
[408455751,1773667840804,-500.0,0.00018973,2]
[408455752,1773667840814,-500.0,0.00018973,2]
[408455753,1773667840824,-503.22825721,0.00018973,2]
[408455755,1773667840834,-500.0,0.00018973,2]
[408455757,1773667840843,-500.0,0.00018973,2]
[408455759,1773667840853,-658.80665698,0.00018984,2]
[408455761,1773667840863,-9588.95724247,0.0001899,2]
[408455763,1773667840882,-500.0,0.00018999,2]
[408455765,1773667840892,-500.0,0.00018999,2]
[408455767,1773667840901,-500.0,0.00018999,2]
[408455769,1773667840910,-1241.17,0.00018999,2]
[408455771,1773667840919,-553.42510209,0.00018999,2]
[408455773,1773667840928,-500.0,0.00018999,2]
[408455775,1773667840937,-253.44056003,0.00018999,2]
[408455777,1773667840946,-163.34414578,0.00018999,2]
[408455779,1773667840956,-309.40321204,0.00018999,2]
[408455781,1773667840965,-690.01041515,0.00018999,2]
[408455783,1773667840974,-3399649.67728718,0.00019,2]
[408455800,1773667843144,-500.0,0.00018941,2]
[408455801,1773667843154,-500.0,0.00018941,2]
[408455802,1773667843164,-500.0,0.00018941,2]
[408455803,1773667843173,-500.0,0.00018941,2]
[408455804,1773667843182,-500.0,0.00018941,2]
[408455805,1773667843192,-500.0,0.00018941,2]
[408455806,1773667843202,-500.0,0.00018941,2]
[408455807,1773667843212,-506.99923519,0.00018941,2]
[408455808,1773667843221,-500.0,0.00018941,2]
[408455809,1773667843233,-500.0,0.00018941,2]
[408455810,1773667843242,-500.0,0.00018941,2]
[408455811,1773667843251,-347712.43590539,0.00019,2]
[408455812,1773667843311,-2723.35186212,0.00019,2]
[408455820,1773667845856,-1908.81752161,0.00019,2]
[408455827,1773667845977,-12895.542701,0.00019,2]
[408455828,1773667846203,-426.0,0.00019,2]
[408455845,1773668173089,161.03,8.896e-05,2]
[408455867,1773668751132,-161.03,0.00010675,2]
[408455868,1773668751153,-161.03,0.00012455,2]
[408455869,1773668751172,-161.03,0.00014234,2]
[408455870,1773668751192,-190.59,0.00014933,2]
[408455871,1773668751212,-150.0,0.00014933,2]
[408455872,1773668751232,-150.00360178,0.000151,2]
[408455873,1773668751252,-209.357476,0.00016,2]
[408455874,1773668751273,-161.03,0.00016013,2]
[408455875,1773668751293,-505.0,0.00017,2]
[408455876,1773668751312,-860.6732,0.00017,2]
[408455877,1773668751333,-185.48596,0.00017,2]
[408455878,1773668751354,-37.11292041,0.00017334,2]
[408455880,1773668791098,-185.48725017,0.00017334,2]
[408455882,1773668839121,-277.39982942,0.00017334,2]
[408455883,1773668839148,-200.0,0.00017352,2]
[408455884,1773668839177,-908.18,0.00017423,2]
[408455885,1773668839214,-124.92133558,0.00017578,2]
[408455886,1773668843136,-30.93866442,0.00017578,2]
[408455887,1773668843161,-161.03,0.00017792,2]
[408455888,1773668843186,-484.18148059,0.00017807,2]
[408455890,1773668847201,-715.81851941,0.00017807,2]
[408455891,1773668847223,-800.0,0.00017808,2]
[408455892,1773668847481,-144.98236461,0.00017922,2]
[408455913,1773669032084,-629.8408,0.00017,2]
[408455915,1773669032094,-294.0,0.00017,2]
[408455916,1773669032105,-214.68999513,0.00017538,2]
[408455917,1773669032117,-829.38668649,0.00017538,2]
[408455918,1773669032128,-955.92331838,0.00017538,2]
[408455919,1773669032138,-700.77590808,0.00017922,2]
[408455920,1773669032149,-797.74172731,0.00017922,2]
[408455921,1773669032159,-67.63051694,0.00018,2]
[408455922,1773669032169,-132.36948306,0.00018,2]
[408455923,1773669032178,-200.0,0.00018039,2]
[408455924,1773669032187,-684.68698101,0.00018049,2]
[408455925,1773669032203,-165.31301899,0.00018049,2]
[408455926,1773669032214,-925.0,0.00018049,2]
[408455927,1773669032222,-300.0,0.00018049,2]
[408455928,1773669032231,-2399.74107951,0.0001805,2]
[408455929,1773669032242,-4985.87184593,0.0001805,2]
[408455930,1773669032251,-5000.0,0.0001805,2]
[408455931,1773669032260,-5000.0,0.0001805,2]
[408455932,1773669032270,-5000.0,0.0001805,2]
[408455933,1773669032279,-5000.0,0.0001805,2]
[408455934,1773669032288,-500.0,0.00018207,2]
[408455935,1773669032297,-500.0,0.00018207,2]
[408455936,1773669032306,-500.0,0.00018207,2]
[408455937,1773669032316,-500.0,0.00018207,2]
[408455938,1773669032325,-500.0,0.00018207,2]
[408455939,1773669032335,-500.0,0.00018207,2]
[408455940,1773669032344,-600.2919257,0.00018207,2]
[408455941,1773669032354,-500.0,0.00018207,2]
[408455942,1773669032363,-500.0,0.00018207,2]
[408455943,1773669032372,-542.33811601,0.00018207,2]
[408455944,1773669032382,-151.0,0.00018207,2]
[408455945,1773669032391,-500.0,0.00018207,2]
[408455946,1773669032400,-500.0,0.00018207,2]
[408455947,1773669032409,-500.0,0.00018207,2]
[408455948,1773669032419,-500.0,0.00018207,2]
[408455949,1773669032428,-500.0,0.00018207,2]
[408455950,1773669032438,-500.0,0.00018207,2]
[408455951,1773669032620,-500.0,0.00018207,2]
[408455952,1773669032630,-500.0,0.00018207,2]
[408455953,1773669032641,-500.0,0.00018207,2]
[408455954,1773669032652,-500.0,0.00018207,2]
[408455955,1773669032663,-200.0,0.00018207,2]
[408455956,1773669032677,-174.61919141,0.00018207,2]
[408455957,1773669032687,-250.0,0.00018207,2]
[408455958,1773669032697,-250.0,0.00018207,2]
[408455959,1773669032707,-250.0,0.00018207,2]
[408455960,1773669032716,-250.0,0.00018207,2]
[408455961,1773669032725,-250.0,0.00018207,2]
[408455962,1773669032735,-250.0,0.00018207,2]
[408455963,1773669032744,-250.0,0.00018207,2]
[408455964,1773669032754,-250.0,0.00018207,2]
[408455965,1773669032764,-500.0,0.00018207,2]
[408455966,1773669032774,-500.0,0.00018207,2]
[408455967,1773669032783,-500.0,0.00018207,2]
[408455968,1773669032792,-500.0,0.00018207,2]
[408455969,1773669032801,-500.0,0.00018207,2]
[408455970,1773669032810,-500.0,0.00018207,2]
[408455971,1773669032819,-500.0,0.00018207,2]
[408455972,1773669032828,-152.48,0.00018261,2]
[408455973,1773669032837,-151.0,0.00018262,2]
[408455974,1773669032847,-200.67583713,0.00018284,2]
[408455975,1773669032856,-168.0,0.00018285,2]
[408455976,1773669032866,-151.0,0.00018317,2]
[408455977,1773669032877,-1643.5,0.0001837,2]
[408455978,1773669032896,-151.0,0.00018372,2]
[408455979,1773669032905,-151.0,0.00018427,2]
[408455980,1773669032914,-350.0,0.00018457,2]
[408455981,1773669032923,-839.04419825,0.00018473,2]
[408455982,1773669032932,-839.04419824,0.00018493,2]
[408455983,1773669032941,-300.0,0.000185,6]
[408455984,1773669032951,-1196.12388517,0.00018512,2]
[408455985,1773669032961,-839.04419824,0.00018512,2]
[408455986,1773669032970,-9588.95724247,0.00018523,2]
[408455987,1773669032980,-839.04419824,0.00018532,2]
[408455988,1773669032990,-1000.0,0.00018533,2]
[408455989,1773669032999,-8490.9072,0.00018533,2]
[408455990,1773669033008,-1920.9046,0.00018533,2]
[408455991,1773669033018,-2500.0,0.00018533,2]
[408455992,1773669033028,-659.31543307,0.00018546,2]
[408455993,1773669033037,-11173.94376656,0.00018566,2]
[408455994,1773669033047,-700.0,0.000186,6]
[408455995,1773669033056,-397.38450504,0.00018631,2]
[408455996,1773669033066,-500.0,0.00018631,2]
[408455997,1773669033077,-500.0,0.00018631,2]
[408455998,1773669033086,-500.0,0.00018631,2]
[408455999,1773669033095,-500.0,0.00018631,2]